[Event "*** SCC Grand Prix: Titled Tuesday Blitz"]
[Site "Chess.com"]
[Date "2020.06.02"]
[Round "2"]
[White "KNVB"]
[Black "MariaFominykh"]
[Result "1-0"]
[WhiteElo "2684"]
[BlackElo "2317"]
[TimeControl "180+1"]
[EndTime "10:19:16 PDT"]
[Termination "KNVB won on time"]

1. e4 {[%clk 0:03:00.9]} 1... d6 {[%clk 0:02:59.4]} 2. d4 {[%clk 0:02:58.9]}
2... Nf6 {[%clk 0:02:59.8]} 3. f3 {[%clk 0:02:56.1]} 3... e5 {[%clk 0:02:58.4]}
4. dxe5 {[%clk 0:02:54.6]} 4... dxe5 {[%clk 0:02:59.3]} 5. Qxd8+ {[%clk
0:02:55.2]} 5... Kxd8 {[%clk 0:02:59.4]} 6. Bc4 {[%clk 0:02:55.8]} 6... Be6
{[%clk 0:02:57.5]} 7. Bxe6 {[%clk 0:02:55.4]} 7... fxe6 {[%clk 0:02:58.4]} 8.
Be3 {[%clk 0:02:56.1]} 8... Bd6 {[%clk 0:02:58.5]} 9. Ne2 {[%clk 0:02:56.2]}
9... Nbd7 {[%clk 0:02:58]} 10. Nd2 {[%clk 0:02:56.9]} 10... Ke7 {[%clk 0:02:57]}
11. O-O-O {[%clk 0:02:56.3]} 11... a6 {[%clk 0:02:52.4]} 12. c3 {[%clk 0:02:49]}
12... b5 {[%clk 0:02:39.3]} 13. Kc2 {[%clk 0:02:43.4]} 13... h6 {[%clk
0:02:02.2]} 14. h4 {[%clk 0:02:35.8]} 14... Bc5 {[%clk 0:01:52.6]} 15. Nf1
{[%clk 0:02:26.9]} 15... Rad8 {[%clk 0:01:39.7]} 16. h5 {[%clk 0:02:22.6]} 16...
Bxe3 {[%clk 0:01:35.5]} 17. Nxe3 {[%clk 0:02:23.5]} 17... Nc5 {[%clk 0:01:34.1]}
18. b4 {[%clk 0:02:01.9]} 18... Rxd1 {[%clk 0:01:29.8]} 19. Nxd1 {[%clk
0:02:02.8]} 19... Ncd7 {[%clk 0:01:13.8]} 20. Ne3 {[%clk 0:01:36.7]} 20... c5
{[%clk 0:01:13.4]} 21. a3 {[%clk 0:01:37.2]} 21... Rc8 {[%clk 0:01:08.8]} 22.
Nc1 {[%clk 0:01:23.9]} 22... Nb6 {[%clk 0:01:04.4]} 23. Nd3 {[%clk 0:01:16.1]}
23... Na4 {[%clk 0:00:40.8]} 24. Nd1 {[%clk 0:01:07.8]} 24... cxb4 {[%clk
0:00:32.7]} 25. axb4 {[%clk 0:01:08.7]} 25... Kd6 {[%clk 0:00:30.6]} 26. N3b2
{[%clk 0:00:58]} 26... Nb6 {[%clk 0:00:23.8]} 27. Nf2 {[%clk 0:00:37.2]} 27...
Ke7 {[%clk 0:00:23.3]} 28. Nfd3 {[%clk 0:00:34.9]} 28... Nfd7 {[%clk 0:00:22.3]}
29. Ra1 {[%clk 0:00:34.4]} 29... Ra8 {[%clk 0:00:19.9]} 30. Kb3 {[%clk 0:00:29]}
30... Kf6 {[%clk 0:00:19.9]} 31. Kc2 {[%clk 0:00:13.4]} 31... Kg5 {[%clk
0:00:18.7]} 32. g4 {[%clk 0:00:13.7]} 32... Rf8 {[%clk 0:00:15.3]} 33. Rf1
{[%clk 0:00:06.6]} 33... Kh4 {[%clk 0:00:15]} 34. Kd2 {[%clk 0:00:06.3]} 34...
Kg5 {[%clk 0:00:14.5]} 35. Ke2 {[%clk 0:00:05.4]} 35... Kf6 {[%clk 0:00:13.3]}
36. Ra1 {[%clk 0:00:05.1]} 36... Ra8 {[%clk 0:00:12.8]} 37. Nd1 {[%clk 0:00:04]}
37... Kg5 {[%clk 0:00:12.1]} 38. Ne3 {[%clk 0:00:04.2]} 38... Rc8 {[%clk
0:00:11.9]} 39. Kd2 {[%clk 0:00:03.6]} 39... Ra8 {[%clk 0:00:11.7]} 40. Nd1
{[%clk 0:00:03]} 40... Nc4+ {[%clk 0:00:11.3]} 41. Ke2 {[%clk 0:00:03.1]} 41...
Ncb6 {[%clk 0:00:10.8]} 42. Ra3 {[%clk 0:00:02.9]} 42... Nc4 {[%clk 0:00:10.7]}
43. Ra2 {[%clk 0:00:02.7]} 43... Ncb6 {[%clk 0:00:10.7]} 44. Ne1 {[%clk
0:00:02.8]} 44... Nc4 {[%clk 0:00:10.3]} 45. Nf2 {[%clk 0:00:03.1]} 45... Ncb6
{[%clk 0:00:09.3]} 46. Ng2 {[%clk 0:00:03.1]} 46... Kf6 {[%clk 0:00:09.2]} 47.
Ne3 {[%clk 0:00:03.1]} 47... Na4 {[%clk 0:00:08.7]} 48. Ra3 {[%clk 0:00:03]}
48... Rc8 {[%clk 0:00:08.4]} 49. Nfd1 {[%clk 0:00:03.3]} 49... Ndb6 {[%clk
0:00:08.3]} 50. Kd3 {[%clk 0:00:02.9]} 50... Rd8+ {[%clk 0:00:06.8]} 51. Ke2
{[%clk 0:00:03]} 51... Rc8 {[%clk 0:00:06.9]} 52. Rb3 {[%clk 0:00:03.2]} 52...
Rd8 {[%clk 0:00:06.5]} 53. Nf2 {[%clk 0:00:02.5]} 53... Rc8 {[%clk 0:00:06.3]}
54. Ned1 {[%clk 0:00:03.2]} 54... Rd8 {[%clk 0:00:05.6]} 55. Nd3 {[%clk
0:00:03.6]} 55... Rc8 {[%clk 0:00:05.2]} 56. N3b2 {[%clk 0:00:03.7]} 56... Nxb2
{[%clk 0:00:04.7]} 57. Nxb2 {[%clk 0:00:03.7]} 57... Nc4 {[%clk 0:00:04.2]} 58.
Nxc4 {[%clk 0:00:03.7]} 58... Rxc4 {[%clk 0:00:04.1]} 59. Ra3 {[%clk 0:00:04.2]}
59... Rc6 {[%clk 0:00:04.5]} 60. Ke3 {[%clk 0:00:02.8]} 60... Kg5 {[%clk
0:00:04.8]} 61. Rb3 {[%clk 0:00:03]} 61... Kf6 {[%clk 0:00:04.9]} 62. Ra3 {[%clk
0:00:02.8]} 62... Kg5 {[%clk 0:00:04.8]} 63. Rb3 {[%clk 0:00:02.7]} 63... Kf6
{[%clk 0:00:04.8]} 64. f4 {[%clk 0:00:03.2]} 64... exf4+ {[%clk 0:00:03.8]} 65.
Kxf4 {[%clk 0:00:04.1]} 65... e5+ {[%clk 0:00:04.1]} 66. Kf3 {[%clk 0:00:03.5]}
66... Kg5 {[%clk 0:00:04.3]} 67. Kg3 {[%clk 0:00:03.1]} 67... Rf6 {[%clk
0:00:04.4]} 68. Ra3 {[%clk 0:00:02.9]} 68... Rf4 {[%clk 0:00:04.5]} 69. Rxa6
{[%clk 0:00:02.9]} 69... Rxg4+ {[%clk 0:00:04.7]} 70. Kf3 {[%clk 0:00:03.3]}
70... Kxh5 {[%clk 0:00:02.9]} 71. Rb6 {[%clk 0:00:03]} 71... Rf4+ {[%clk
0:00:03.8]} 72. Ke3 {[%clk 0:00:03.3]} 72... g5 {[%clk 0:00:01.6]} 73. Rxb5
{[%clk 0:00:03.7]} 73... g4 {[%clk 0:00:02.4]} 74. Rxe5+ {[%clk 0:00:03.9]}
74... Kh4 {[%clk 0:00:01.9]} 75. Kxf4 {[%clk 0:00:04.3]} 1-0

[Event "*** SCC Grand Prix: Titled Tuesday Blitz"]
[Site "Chess.com"]
[Date "2020.06.02"]
[Round "2"]
[White "bait_or_mate"]
[Black "Vandros57"]
[Result "1-0"]
[WhiteElo "2545"]
[BlackElo "2251"]
[TimeControl "180+1"]
[EndTime "10:19:18 PDT"]
[Termination "bait_or_mate won on time"]

1. d4 {[%clk 0:03:00.9]} 1... Nf6 {[%clk 0:02:58.6]} 2. c4 {[%clk 0:03:01]} 2...
e6 {[%clk 0:02:57.8]} 3. Nf3 {[%clk 0:03:01.5]} 3... Bb4+ {[%clk 0:02:56.6]} 4.
Nbd2 {[%clk 0:02:59]} 4... d5 {[%clk 0:02:54.8]} 5. g3 {[%clk 0:02:58.3]} 5...
O-O {[%clk 0:02:52.7]} 6. Bg2 {[%clk 0:02:58.8]} 6... Bxd2+ {[%clk 0:02:45.2]}
7. Bxd2 {[%clk 0:02:57.9]} 7... Ne4 {[%clk 0:02:44.4]} 8. O-O {[%clk 0:02:57.5]}
8... Nxd2 {[%clk 0:02:42.5]} 9. Nxd2 {[%clk 0:02:56.2]} 9... Nd7 {[%clk
0:02:31.8]} 10. e4 {[%clk 0:02:54.1]} 10... dxe4 {[%clk 0:02:30.5]} 11. Nxe4
{[%clk 0:02:55]} 11... Nf6 {[%clk 0:02:29.5]} 12. Nc3 {[%clk 0:02:53.7]} 12...
c6 {[%clk 0:02:19.5]} 13. Qd2 {[%clk 0:02:52.9]} 13... Qb6 {[%clk 0:02:18.4]}
14. Rad1 {[%clk 0:02:52.1]} 14... Rd8 {[%clk 0:02:17.8]} 15. b3 {[%clk
0:02:49.2]} 15... h6 {[%clk 0:02:17.1]} 16. Qe3 {[%clk 0:02:48.3]} 16... Bd7
{[%clk 0:02:16.5]} 17. Rd2 {[%clk 0:02:44.7]} 17... Be8 {[%clk 0:02:15.9]} 18.
Rfd1 {[%clk 0:02:45]} 18... Rd7 {[%clk 0:02:15.4]} 19. Na4 {[%clk 0:02:42.9]}
19... Qc7 {[%clk 0:02:08]} 20. Nc5 {[%clk 0:02:42.8]} 20... Rdd8 {[%clk
0:02:07.3]} 21. Qe5 {[%clk 0:02:37.9]} 21... Rac8 {[%clk 0:01:55.7]} 22. h3
{[%clk 0:02:23.1]} 22... Nd7 {[%clk 0:01:46.6]} 23. Qxc7 {[%clk 0:02:15.4]}
23... Rxc7 {[%clk 0:01:45.9]} 24. Nd3 {[%clk 0:01:45.1]} 24... Kf8 {[%clk
0:01:41.7]} 25. f4 {[%clk 0:01:44]} 25... g6 {[%clk 0:01:39.2]} 26. Kf2 {[%clk
0:01:44.1]} 26... h5 {[%clk 0:01:38]} 27. Ke3 {[%clk 0:01:43.3]} 27... Ke7
{[%clk 0:01:36.7]} 28. g4 {[%clk 0:01:25.9]} 28... hxg4 {[%clk 0:01:32.6]} 29.
hxg4 {[%clk 0:01:26.8]} 29... Nf6 {[%clk 0:01:29.5]} 30. g5 {[%clk 0:01:26.2]}
30... Nd7 {[%clk 0:01:22.5]} 31. Ne5 {[%clk 0:01:07.3]} 31... Nxe5 {[%clk
0:01:21.5]} 32. fxe5 {[%clk 0:01:08.2]} 32... a5 {[%clk 0:01:09.4]} 33. Be4
{[%clk 0:01:01.8]} 33... Ra8 {[%clk 0:01:07.3]} 34. Rh1 {[%clk 0:00:57.6]} 34...
b6 {[%clk 0:01:03.9]} 35. Rh7 {[%clk 0:00:56.7]} 35... Kd8 {[%clk 0:01:01]} 36.
Rh8 {[%clk 0:00:45.7]} 36... Ke7 {[%clk 0:00:51]} 37. Rdh2 {[%clk 0:00:43.7]}
37... a4 {[%clk 0:00:49.7]} 38. b4 {[%clk 0:00:43.3]} 38... a3 {[%clk
0:00:49.4]} 39. Kd3 {[%clk 0:00:36.6]} 39... Ra4 {[%clk 0:00:47.9]} 40. Kc3
{[%clk 0:00:36.7]} 40... Ra8 {[%clk 0:00:44.5]} 41. R2h7 {[%clk 0:00:35.3]}
41... Rd8 {[%clk 0:00:38.7]} 42. Bxg6 {[%clk 0:00:29.4]} 42... c5 {[%clk
0:00:36.6]} 43. dxc5 {[%clk 0:00:20.4]} 43... bxc5 {[%clk 0:00:36.2]} 44. b5
{[%clk 0:00:20.6]} 44... Rcd7 {[%clk 0:00:34.3]} 45. Be4 {[%clk 0:00:18.8]}
45... Rd1 {[%clk 0:00:32]} 46. g6 {[%clk 0:00:18.3]} 46... Rc1+ {[%clk
0:00:29.6]} 47. Bc2 {[%clk 0:00:18.3]} 47... Rd4 {[%clk 0:00:19.3]} 48. gxf7
{[%clk 0:00:18]} 48... Bxf7 {[%clk 0:00:18.2]} 49. Rc8 {[%clk 0:00:17.2]} 49...
Rf4 {[%clk 0:00:16.4]} 50. Rc7+ {[%clk 0:00:16.7]} 50... Kf8 {[%clk 0:00:16]}
51. Kd2 {[%clk 0:00:16]} 51... Rcf1 {[%clk 0:00:14.7]} 52. Bd3 {[%clk
0:00:15.3]} 52... R1f2+ {[%clk 0:00:14]} 53. Kc3 {[%clk 0:00:15.3]} 53... Rxa2
{[%clk 0:00:12.8]} 54. b6 {[%clk 0:00:12.9]} 54... Rb2 {[%clk 0:00:12.3]} 55.
Rc8+ {[%clk 0:00:12.8]} 55... Be8 {[%clk 0:00:10.5]} 56. Rh8+ {[%clk 0:00:12.4]}
56... Kg7 {[%clk 0:00:09.1]} 57. Rhxe8 {[%clk 0:00:12.7]} 57... Rff2 {[%clk
0:00:07]} 58. Re7+ {[%clk 0:00:12.5]} 58... Kh6 {[%clk 0:00:06.4]} 59. Rh8+
{[%clk 0:00:10.9]} 59... Kg5 {[%clk 0:00:06]} 60. Rg7+ {[%clk 0:00:10.7]} 60...
Kf4 {[%clk 0:00:05.6]} 61. Rf7+ {[%clk 0:00:10.9]} 61... Kxe5 {[%clk 0:00:05.5]}
62. Rxf2 {[%clk 0:00:10.9]} 62... Rxf2 {[%clk 0:00:05.2]} 63. Ra8 {[%clk
0:00:10.8]} 63... a2 {[%clk 0:00:04.6]} 64. b7 {[%clk 0:00:10.5]} 64... Rf8
{[%clk 0:00:03]} 65. Rxa2 {[%clk 0:00:09.7]} 65... Rb8 {[%clk 0:00:01.8]} 66.
Rb2 {[%clk 0:00:09.7]} 66... Kd6 {[%clk 0:00:01.6]} 67. Be4 {[%clk 0:00:09.4]}
67... Kc7 {[%clk 0:00:01.8]} 68. Kd3 {[%clk 0:00:09.7]} 68... Rd8+ {[%clk
0:00:01.5]} 69. Ke3 {[%clk 0:00:10]} 69... Kb8 {[%clk 0:00:01.7]} 70. Kf4 {[%clk
0:00:09.9]} 70... Rd4 {[%clk 0:00:01.7]} 71. Rc2 {[%clk 0:00:08]} 71... Rd1
{[%clk 0:00:01]} 72. Ke5 {[%clk 0:00:08.3]} 1-0

[Event "*** SCC Grand Prix: Titled Tuesday Blitz"]
[Site "Chess.com"]
[Date "2020.06.02"]
[Round "2"]
[White "SahajGrover"]
[Black "VinzentSpitzl"]
[Result "1/2-1/2"]
[WhiteElo "2711"]
[BlackElo "2389"]
[TimeControl "180+1"]
[EndTime "10:19:19 PDT"]
[Termination "Game drawn - insufficient material"]

1. e4 {[%clk 0:03:00.9]} 1... c5 {[%clk 0:02:59.7]} 2. Nf3 {[%clk 0:03:01.1]}
2... d6 {[%clk 0:03:00.2]} 3. d4 {[%clk 0:03:01]} 3... cxd4 {[%clk 0:03:01.1]}
4. Nxd4 {[%clk 0:03:01.9]} 4... Nf6 {[%clk 0:03:01.8]} 5. Nc3 {[%clk 0:03:01.4]}
5... a6 {[%clk 0:03:02.3]} 6. Bc4 {[%clk 0:03:01.4]} 6... e6 {[%clk 0:03:01.9]}
7. Bb3 {[%clk 0:03:02]} 7... Nc6 {[%clk 0:03:02.1]} 8. Be3 {[%clk 0:02:59.9]}
8... Qc7 {[%clk 0:03:01]} 9. O-O {[%clk 0:02:59.6]} 9... Be7 {[%clk 0:02:50.2]}
10. f4 {[%clk 0:02:59.4]} 10... O-O {[%clk 0:02:41.3]} 11. Qf3 {[%clk
0:02:57.4]} 11... Na5 {[%clk 0:02:34]} 12. Bf2 {[%clk 0:02:40.8]} 12... Nxb3
{[%clk 0:02:21.6]} 13. axb3 {[%clk 0:02:39.9]} 13... Bd7 {[%clk 0:02:21.6]} 14.
Rae1 {[%clk 0:02:33.5]} 14... Bc6 {[%clk 0:02:17.7]} 15. Bh4 {[%clk 0:02:21.5]}
15... Rac8 {[%clk 0:02:04.2]} 16. Qh3 {[%clk 0:02:00.8]} 16... Kh8 {[%clk
0:01:57.9]} 17. e5 {[%clk 0:01:42.8]} 17... dxe5 {[%clk 0:01:57.7]} 18. fxe5
{[%clk 0:01:43.7]} 18... Nd5 {[%clk 0:01:52.3]} 19. Nxd5 {[%clk 0:01:41.5]}
19... Bxd5 {[%clk 0:01:48.4]} 20. Bxe7 {[%clk 0:01:27.7]} 20... Qxe7 {[%clk
0:01:49.3]} 21. c3 {[%clk 0:01:28]} 21... b5 {[%clk 0:01:12.6]} 22. b4 {[%clk
0:01:26.7]} 22... Rce8 {[%clk 0:01:03.8]} 23. Qg3 {[%clk 0:01:15]} 23... f6
{[%clk 0:01:00]} 24. Ra1 {[%clk 0:00:52.7]} 24... fxe5 {[%clk 0:00:54]} 25. Qxe5
{[%clk 0:00:53.6]} 25... Rxf1+ {[%clk 0:00:53.4]} 26. Rxf1 {[%clk 0:00:52.5]}
26... Bc4 {[%clk 0:00:40.5]} 27. Rf4 {[%clk 0:00:45.6]} 27... h6 {[%clk
0:00:30.1]} 28. h4 {[%clk 0:00:36.9]} 28... Rf8 {[%clk 0:00:23.1]} 29. Rxf8+
{[%clk 0:00:27.1]} 29... Qxf8 {[%clk 0:00:24]} 30. Nxe6 {[%clk 0:00:20.5]} 30...
Bxe6 {[%clk 0:00:22.6]} 31. Qxe6 {[%clk 0:00:21.4]} 31... Qf4 {[%clk 0:00:23.2]}
32. Qxa6 {[%clk 0:00:14.6]} 32... Qc1+ {[%clk 0:00:20.5]} 33. Kh2 {[%clk
0:00:14.4]} 33... Qf4+ {[%clk 0:00:20.9]} 34. Kh3 {[%clk 0:00:13.7]} 34... Qf5+
{[%clk 0:00:19.3]} 35. Kg3 {[%clk 0:00:13.8]} 35... Qe5+ {[%clk 0:00:19.7]} 36.
Kf3 {[%clk 0:00:13.8]} 36... Qf5+ {[%clk 0:00:18.6]} 37. Ke3 {[%clk 0:00:14.2]}
37... Qe5+ {[%clk 0:00:16.4]} 38. Kd3 {[%clk 0:00:14.3]} 38... Qf5+ {[%clk
0:00:16.8]} 39. Kd2 {[%clk 0:00:13.4]} 39... Qf2+ {[%clk 0:00:16.9]} 40. Kc1
{[%clk 0:00:12.6]} 40... Qg1+ {[%clk 0:00:15.2]} 41. Kc2 {[%clk 0:00:12.7]}
41... Qxg2+ {[%clk 0:00:15.8]} 42. Kb1 {[%clk 0:00:11.3]} 42... Qf1+ {[%clk
0:00:14.6]} 43. Ka2 {[%clk 0:00:11.2]} 43... Qc4+ {[%clk 0:00:15.2]} 44. Ka3
{[%clk 0:00:11.8]} 44... Qf1 {[%clk 0:00:13.9]} 45. Qc8+ {[%clk 0:00:10]} 45...
Kh7 {[%clk 0:00:14.4]} 46. Ka2 {[%clk 0:00:08.3]} 46... g5 {[%clk 0:00:12.5]}
47. hxg5 {[%clk 0:00:06.6]} 47... hxg5 {[%clk 0:00:13.4]} 48. Qd7+ {[%clk
0:00:06.6]} 48... Kg6 {[%clk 0:00:13.6]} 49. Qe6+ {[%clk 0:00:07.1]} 49... Kh5
{[%clk 0:00:09.6]} 50. Qe5 {[%clk 0:00:06.6]} 50... Kh4 {[%clk 0:00:07.9]} 51.
Qe7 {[%clk 0:00:05.4]} 51... Kh5 {[%clk 0:00:07.3]} 52. Qe6 {[%clk 0:00:03.6]}
52... g4 {[%clk 0:00:06.3]} 53. c4 {[%clk 0:00:04.1]} 53... Qxc4+ {[%clk
0:00:05]} 54. Qxc4 {[%clk 0:00:04.3]} 54... bxc4 {[%clk 0:00:05.9]} 55. b5
{[%clk 0:00:05.2]} 55... g3 {[%clk 0:00:06.8]} 56. b6 {[%clk 0:00:06.1]} 56...
g2 {[%clk 0:00:07.7]} 57. b7 {[%clk 0:00:07]} 57... g1=Q {[%clk 0:00:08.6]} 58.
b8=Q {[%clk 0:00:07.1]} 58... Qd4 {[%clk 0:00:05.8]} 59. Qb5+ {[%clk 0:00:07.2]}
59... Kg6 {[%clk 0:00:05.7]} 60. Ka3 {[%clk 0:00:07.7]} 60... Kf7 {[%clk
0:00:06]} 61. Qb7+ {[%clk 0:00:05.2]} 61... Ke6 {[%clk 0:00:05.7]} 62. Qc6+
{[%clk 0:00:05.3]} 62... Qd6+ {[%clk 0:00:03.2]} 63. Qxd6+ {[%clk 0:00:04.4]}
63... Kxd6 {[%clk 0:00:04.1]} 64. Kb4 {[%clk 0:00:04.7]} 64... Kd5 {[%clk
0:00:04.6]} 65. Kc3 {[%clk 0:00:04.3]} 65... Kc5 {[%clk 0:00:05]} 66. b3 {[%clk
0:00:04.9]} 66... cxb3 {[%clk 0:00:04.7]} 67. Kxb3 {[%clk 0:00:05.8]} 1/2-1/2

[Event "*** SCC Grand Prix: Titled Tuesday Blitz"]
[Site "Chess.com"]
[Date "2020.06.02"]
[Round "2"]
[White "c63_amg"]
[Black "OrtizMarcos"]
[Result "1/2-1/2"]
[WhiteElo "2700"]
[BlackElo "2328"]
[TimeControl "180+1"]
[EndTime "10:19:23 PDT"]
[Termination "Game drawn by repetition"]

1. e4 {[%clk 0:03:00.9]} 1... c6 {[%clk 0:02:59.8]} 2. d4 {[%clk 0:03:00.3]}
2... d5 {[%clk 0:03:00.3]} 3. e5 {[%clk 0:03:00.8]} 3... c5 {[%clk 0:03:00.5]}
4. dxc5 {[%clk 0:03:00.5]} 4... e6 {[%clk 0:03:01]} 5. a3 {[%clk 0:03:00.5]}
5... Bxc5 {[%clk 0:03:00.2]} 6. b4 {[%clk 0:03:00.9]} 6... Be7 {[%clk
0:03:00.7]} 7. Nf3 {[%clk 0:03:00.7]} 7... a5 {[%clk 0:03:00.7]} 8. b5 {[%clk
0:03:00]} 8... Nd7 {[%clk 0:03:01.3]} 9. Bb2 {[%clk 0:02:59.5]} 9... Nh6 {[%clk
0:02:59.1]} 10. Bd3 {[%clk 0:02:59.2]} 10... O-O {[%clk 0:02:57.6]} 11. O-O
{[%clk 0:02:59.4]} 11... f6 {[%clk 0:02:55.9]} 12. c4 {[%clk 0:02:49.8]} 12...
Nc5 {[%clk 0:02:52.3]} 13. Nc3 {[%clk 0:02:44.6]} 13... Nxd3 {[%clk 0:02:18.1]}
14. Qxd3 {[%clk 0:02:45.5]} 14... fxe5 {[%clk 0:02:05.5]} 15. cxd5 {[%clk
0:02:41.7]} 15... exd5 {[%clk 0:01:50.8]} 16. Qxd5+ {[%clk 0:02:33.3]} 16... Nf7
{[%clk 0:01:42.8]} 17. Nxe5 {[%clk 0:02:24.1]} 17... Bf6 {[%clk 0:01:28.5]} 18.
Qxd8 {[%clk 0:01:54.9]} 18... Rxd8 {[%clk 0:01:22.7]} 19. Nxf7 {[%clk
0:01:39.4]} 19... Kxf7 {[%clk 0:01:23.6]} 20. Na4 {[%clk 0:01:33.3]} 20... Bxb2
{[%clk 0:01:12.6]} 21. Nxb2 {[%clk 0:01:34.2]} 21... Be6 {[%clk 0:01:13]} 22.
Rac1 {[%clk 0:01:20.1]} 22... Rac8 {[%clk 0:01:10.8]} 23. f3 {[%clk 0:01:04.5]}
23... Kf6 {[%clk 0:00:41.9]} 24. a4 {[%clk 0:00:34.1]} 24... Rxc1 {[%clk
0:00:30.3]} 25. Rxc1 {[%clk 0:00:33.1]} 25... Rd4 {[%clk 0:00:31.2]} 26. h3
{[%clk 0:00:11.5]} 26... Rb4 {[%clk 0:00:30.9]} 27. Rc2 {[%clk 0:00:09.3]} 27...
Bb3 {[%clk 0:00:29.4]} 28. Rc7 {[%clk 0:00:09.8]} 28... Bxa4 {[%clk 0:00:25.8]}
29. Nxa4 {[%clk 0:00:10.2]} 29... Rxa4 {[%clk 0:00:26]} 30. Rxb7 {[%clk
0:00:11]} 30... Rb4 {[%clk 0:00:25.6]} 31. Kh2 {[%clk 0:00:10.9]} 31... a4
{[%clk 0:00:25.5]} 32. Kg3 {[%clk 0:00:11.2]} 32... h5 {[%clk 0:00:23.8]} 33. h4
{[%clk 0:00:11.1]} 33... g6 {[%clk 0:00:22.1]} 34. b6 {[%clk 0:00:05.6]} 34...
a3 {[%clk 0:00:21.4]} 35. Ra7 {[%clk 0:00:06.1]} 35... Rxb6 {[%clk 0:00:21.2]}
36. Rxa3 {[%clk 0:00:06.7]} 36... Rc6 {[%clk 0:00:20.2]} 37. Ra5 {[%clk
0:00:06.8]} 37... Rb6 {[%clk 0:00:20.1]} 38. Ra4 {[%clk 0:00:07]} 38... Rc6
{[%clk 0:00:20.5]} 39. Kf4 {[%clk 0:00:07.5]} 39... Rb6 {[%clk 0:00:20.4]} 40.
g3 {[%clk 0:00:08.1]} 40... Rc6 {[%clk 0:00:20.3]} 41. Re4 {[%clk 0:00:09]}
41... Rb6 {[%clk 0:00:20.2]} 42. Rd4 {[%clk 0:00:09.3]} 42... Rc6 {[%clk
0:00:20.5]} 43. Ke4 {[%clk 0:00:09.9]} 43... Ra6 {[%clk 0:00:20.6]} 44. Rc4
{[%clk 0:00:10.2]} 44... Rb6 {[%clk 0:00:20.7]} 45. Kd5 {[%clk 0:00:09.2]} 45...
Rb3 {[%clk 0:00:19.6]} 46. Rc6+ {[%clk 0:00:04.1]} 46... Kg7 {[%clk 0:00:17.5]}
47. Ke4 {[%clk 0:00:04.5]} 47... Rb4+ {[%clk 0:00:17.3]} 48. Ke3 {[%clk
0:00:05.1]} 48... Rb3+ {[%clk 0:00:17.6]} 49. Kf4 {[%clk 0:00:05.6]} 49... Rb4+
{[%clk 0:00:17.8]} 50. Ke5 {[%clk 0:00:06.1]} 50... Rb5+ {[%clk 0:00:18]} 51.
Kd4 {[%clk 0:00:05.5]} 51... Rb3 {[%clk 0:00:17.9]} 52. Rc3 {[%clk 0:00:05.8]}
52... Rb4+ {[%clk 0:00:18.1]} 53. Ke3 {[%clk 0:00:05.9]} 53... Rb7 {[%clk
0:00:16.8]} 54. Rd3 {[%clk 0:00:06.8]} 54... Kf6 {[%clk 0:00:16.6]} 55. Ke4
{[%clk 0:00:05.8]} 55... Re7+ {[%clk 0:00:16.9]} 56. Kf4 {[%clk 0:00:06.3]}
56... Ra7 {[%clk 0:00:16.5]} 57. Rd6+ {[%clk 0:00:06.6]} 57... Kg7 {[%clk
0:00:16.8]} 58. Rd4 {[%clk 0:00:07.3]} 58... Ra6 {[%clk 0:00:16.6]} 59. Ke4
{[%clk 0:00:06.6]} 59... Re6+ {[%clk 0:00:15.6]} 60. Kf4 {[%clk 0:00:07]} 60...
Rf6+ {[%clk 0:00:15.5]} 61. Ke3 {[%clk 0:00:06.7]} 61... Re6+ {[%clk 0:00:15.7]}
62. Re4 {[%clk 0:00:07.6]} 62... Ra6 {[%clk 0:00:15.2]} 63. Kf4 {[%clk
0:00:08.1]} 63... Kf6 {[%clk 0:00:14.4]} 64. Rd4 {[%clk 0:00:06.3]} 64... Rb6
{[%clk 0:00:14.2]} 65. g4 {[%clk 0:00:04.4]} 65... hxg4 {[%clk 0:00:14]} 66.
fxg4 {[%clk 0:00:05.3]} 66... Ra6 {[%clk 0:00:14.2]} 67. g5+ {[%clk 0:00:05.8]}
67... Kg7 {[%clk 0:00:14.4]} 68. Rd7+ {[%clk 0:00:06.3]} 68... Kg8 {[%clk
0:00:13.3]} 69. Re7 {[%clk 0:00:06.7]} 69... Rb6 {[%clk 0:00:13.6]} 70. Re4
{[%clk 0:00:07.1]} 70... Kf7 {[%clk 0:00:13.2]} 71. Rd4 {[%clk 0:00:05.9]} 71...
Ra6 {[%clk 0:00:13.4]} 72. Rd7+ {[%clk 0:00:05.8]} 72... Ke6 {[%clk 0:00:12.6]}
73. Rd4 {[%clk 0:00:03.5]} 73... Rb6 {[%clk 0:00:10.7]} 74. Re4+ {[%clk
0:00:04.4]} 74... Kf7 {[%clk 0:00:10.5]} 75. Rc4 {[%clk 0:00:05]} 75... Ra6
{[%clk 0:00:10.9]} 76. Ke5 {[%clk 0:00:04.9]} 76... Ra5+ {[%clk 0:00:10.8]} 77.
Kf4 {[%clk 0:00:05.5]} 77... Ra6 {[%clk 0:00:11.3]} 78. Rd4 {[%clk 0:00:06]}
78... Ke6 {[%clk 0:00:10.9]} 79. Ke4 {[%clk 0:00:06.3]} 79... Rb6 {[%clk
0:00:10.2]} 80. Kf4 {[%clk 0:00:06.8]} 80... Ra6 {[%clk 0:00:10.3]} 81. Re4+
{[%clk 0:00:07.3]} 81... Kf7 {[%clk 0:00:10.9]} 82. Rd4 {[%clk 0:00:07]} 82...
Ke6 {[%clk 0:00:10.7]} 1/2-1/2